Cogmind - Beta 13 @@@ ROGUE MODE // 2024.06.20 @ 12:45:52 Player: Some Pennies Result: Destroyed by S-10 Pest with Light Assault Rifle Performance ------------- Evolutions (0) 0 Regions Visited (2) 400 Robots Destroyed (40) 200 Value Destroyed (717) 717 Prototype IDs (2) 40 Alien Tech Used (0) 0 Bonus (0) 0 TOTAL SCORE: 1357 Bonus ------- None Cogmind --------- Core Integrity 0/250 Matter 299/300 Energy 250/250 System Corruption 0% Temperature Cool (0) Movement Treading (320) Ox2 Location -10/Mines Parts ------- > --- POWER (1) -------- Ion Engine > --- PROPULSION (2) --- Light Treads Light Treads > --- UTILITY (2) ------ Huge Storage Unit Seismic Detector > --- WEAPON (2) ------- Assault Rifle Assault Rifle > --- INVENTORY (25) --- Ion Engine Light Treads Light Treads Compact Wheel Improved Heat Sink Structural Scanner Improved Terrain Scanner Seismic Detector Transport Network Coupler ECM Suite Core Shielding Authchip [Propulsion] Authchip [Device] Assault Rifle Assault Rifle Light Assault Rifle Light Cannon Light Cannon Light Cannon Light Cannon Grenade Launcher Rocket Launcher Datajack Mining Laser Welding Torch Peak State ------------ > --- POWER ------------ Ion Engine > --- PROPULSION ------- Light Treads Light Treads > --- UTILITY ---------- Huge Storage Unit Seismic Detector > --- WEAPON ----------- Assault Rifle Assault Rifle > --- INVENTORY -------- Ion Engine Ion Engine Light Treads Light Treads Compact Wheel Heat Sink Heat Sink Structural Scanner Seismic Detector Seismic Detector Transport Network Coupler Core Shielding Authchip [Propulsion] Authchip [Device] Assault Rifle Assault Rifle Light Assault Rifle Light Assault Rifle Light Assault Rifle Light Assault Rifle Grenade Launcher Datajack Mining Laser Welding Torch [Rating: 10] Favorites ----------- Power Ion Engine Engine Ion Engine Propulsion Light Treads Treads Light Treads Wheel Compact Wheel Utility Huge Storage Unit Device Seismic Detector Storage Huge Storage Unit Protection Core Shielding Weapon Assault Rifle Ballistic Gun Assault Rifle Launcher Grenade Launcher Build | -11 -10 -10 ------- Run | Yrd Mat Min Slots Evolved . | . . . Power . | . . . Propulsion . | . . . Utility . | . . . Weapon . | . . . Parts Attached 19 | 8 6 5 Power 2 | 1 1 . Engine 2 | 1 1 . Core . | . . . Reactor . | . . . Propulsion 4 | 2 1 1 Treads 3 | 1 1 1 Leg . | . . . Wheel 1 | 1 . . Hover . | . . . Flight . | . . . Utility 6 | 2 3 1 Device 2 | 1 . 1 Storage 3 | 1 2 . Processor . | . . . Hackware . | . . . Protection 1 | . 1 . Artifact . | . . . Weapon 7 | 3 1 3 Energy Gun . | . . . Energy Cannon . | . . . Ballistic Gun 6 | 3 1 2 Ballistic Cannon . | . . . Launcher 1 | . . 1 Special Weapon . | . . . Impact Weapon . | . . . Slashing Weapon . | . . . Piercing Weapon . | . . . Special Melee Weapon . | . . . Unidentified Prototypes . | . . . Parts Lost 2 | . . 2 Power . | . . . Propulsion 1 | . . 1 Utility . | . . . Weapon 1 | . . 1 Highest Loss Streak 2 | . . 2 To Critical Strikes . | . . . Average Slot Usage (%) 99 | . 100 99 Engine 14 | . 14 14 Treads 26 | . 26 28 Wheel 1 | . 1 . Device 7 | . 7 7 Storage 14 | . 14 14 Protection 6 | . 6 6 Ballistic Gun 27 | . 28 27 Naked Turns . | . . . Heaviest Build 90 | 14 90 90 Greatest Support 40 | 16 40 40 Greatest Overweight (x) 5 | . 5 2 Average Overweight (x) 1 | . 1 2 Largest Inventory Capacity 25 | 8 25 25 Average Capacity 22 | 7 22 25 Most Carried 25 | 7 25 25 Average Carried 20 | 5 19 24 Final Capacity 25 | 8 25 25 Final Carried 25 | 7 25 25 Class Distribution -------------------- 100% | Mutant Dominant Class ---------------- Mutant | -10/Materials Mutant | -10/Mines Resources | -11 -10 -10 ----------- Run | Yrd Mat Min Matter Collected 892 | 282 480 130 Remotely . | . . . Salvage Created 1203 | 51 976 176 Parts 90 | 8 68 14 Haulers Intercepted 2 | . 2 . Recyclers Shooed 4 | . 4 . Parts Field Recycled . | . . . Retrieved Matter . | . . . Parts Self-Destructed . | . . . Prevented . | . . . Kills | -11 -10 -10 ------- Run | Yrd Mat Min Combat Hostiles Destroyed 27 | . 22 5 Guns 25 | . 22 3 AOE 2 | . . 2 Classes Destroyed 8 | 1 7 . Worker 2 | . 1 1 Builder 1 | . 1 . Tunneler 5 | 3 1 1 Hauler 2 | . 2 . Recycler 2 | . 2 . Watcher 1 | . 1 . Swarmer 12 | . 9 3 Grunt 15 | . 13 2 Best Kill Streak 11 | 1 11 3 Combat Bots Only 5 | . 5 3 Max Kills in Single Turn 2 | 1 2 2 Gunslinging 1 | . 1 . Exploded 2 | . . 2 Melee . | . . . Uniques/NPCs Destroyed . | . . . Combat | -11 -10 -10 -------- Run | Yrd Mat Min Hostile Shots Fired 106 | . 74 32 Missed 22 | . 18 4 Damage Taken 876 | . 547 329 Core 256 | . 173 83 Absorbed by Shields . | . . . Redirected to Shielding 16 | . . 16 Core Remaining (%) 100 | 100 . . Volleys Fired 91 | 9 66 16 Largest 2 | 2 2 2 Hottest 40 | 40 40 40 Shots Fired 178 | 18 132 28 Gun 177 | 18 132 27 Cannon . | . . . Launcher 1 | . . 1 Special . | . . . Kinetic 177 | 18 132 27 Thermal . | . . . Explosive 1 | . . 1 Electromagnetic . | . . . Robot Hit Streak 12 | 4 12 12 Robot Miss Streak 3 | 3 3 3 Penetration Max . | . . . Secondary Targets 6 | . 6 . Max Gunslinging Chain 1 | . 1 . Shots Hit Robots 111 | 8 84 19 Core Hits 61 | 4 46 11 Critical Kills . | . . . Critical Parts Destroyed . | . . . Critical Strikes . | . . . Melee Attacks . | . . . Impact . | . . . Slashing . | . . . Piercing . | . . . Sneak Attacks . | . . . Combat Hostiles . | . . . Follow-up Attacks . | . . . Damage Inflicted 1570 | 79 1159 332 Guns 1470 | 79 1159 232 Cannons . | . . . Explosions 100 | . . 100 Melee . | . . . Ramming . | . . . Kinetic 1470 | 79 1159 232 Thermal . | . . . Explosive 100 | . . 100 Electromagnetic . | . . . Impact . | . . . Slashing . | . . . Piercing . | . . . Highest Corruption . | . . . Average Corruption . | . . . Corruption Purged . | . . . Corruption Blocked . | . . . Overload Shots . | . . . Overflow Damage . | . . . Projectiles . | . . . Explosions . | . . . Melee . | . . . Knockbacks . | . . . Impact . | . . . Kinetic . | . . . Secondary . | . . . Self-Inflicted Damage 12 | . . 12 Shots 1 | . . 1 Rammed . | . . . Targets Rammed . | . . . Kicked . | . . . Crushed . | . . . Highest Temperature 20 | . 5 20 Average Temperature 8 | . 3 11 Received Heat Transfer 345 | . 198 147 Siege Activations . | . . . Robots Corrupted . | . . . Combat Hostiles . | . . . Parts Fried . | . . . Impact Corruptions . | . . . Robots Melted . | . . . Combat Hostiles . | . . . Parts Melted . | . . . Heat Transferred . | . . . Parts Sabotaged . | . . . Parts Stolen . | . . . Parts Stripped . | . . . Power Chain Reactions . | . . . Alert | -11 -10 -10 ------- Run | Yrd Mat Min Peak Influence 345 | 15 345 165 Initial 51 | . 9 51 Average 136 | 7 171 57 Maximum Alert Level 1 | . 1 . Low Security (%) 78 | 100 70 100 Level 1 21 | . 29 . Level 2 . | . . . Level 3 . | . . . Level 4 . | . . . Level 5 . | . . . High Security . | . . . Max Security . | . . . Squads Dispatched 8 | . 7 1 Investigation 6 | . 6 . Extermination . | . . . Reinforcement 1 | . 1 . Assault 1 | . . 1 Garrison . | . . . Intercept . | . . . Searches Triggered . | . . . Construction Impeded . | . . . Haulers Reinforced . | . . . Active Scanning Responses . | . . . Cargo Convoy Interrupts . | . . . Stealth | -11 -10 -10 --------- Run | Yrd Mat Min Distress Signals . | . . . Communications Jammed . | . . . Distress Signals . | . . . Times Spotted 41 | . 34 7 Peak Tracking Total 4 | . 3 4 Tactical Retreats . | . . . Traps | -11 -10 -10 ------- Run | Yrd Mat Min Traps Triggered 1 | . 1 . Indirectly . | . . . Trap Hack Attempts . | . . . Triggered . | . . . Disarmed . | . . . Reprogrammed . | . . . Reused . | . . . Traps Extracted . | . . . Installed . | . . . Triggered . | . . . Machines | -11 -10 -10 ---------- Run | Yrd Mat Min Machines Disabled 1 | . 1 . Max in Single Turn 1 | . 1 . Machines Repaired . | . . . Machines Dismantled . | . . . Machines Sabotaged . | . . . Overloaded Fab Kills . | . . . Hacking | -11 -10 -10 --------- Run | Yrd Mat Min Machines Accessed 9 | . 9 . Terminals 7 | . 7 . Fabricators . | . . . Repair Stations . | . . . Recycling Units 2 | . 2 . Scanalyzers . | . . . Garrison Access . | . . . Total Hacks 36 | . 36 . Successful 15 | . 15 . Failed 21 | . 21 . Catastrophic 4 | . 4 . Database Lockouts . | . . . Manual 25 | . 25 . Terminals 29 | . 29 . Fabricators . | . . . Repair Stations . | . . . Recycling Units 7 | . 7 . Scanalyzers . | . . . Garrison Access . | . . . Terminal Hacks 11 | . 11 . Part Schematic 1 | . 1 . Robot Analysis 4 | . 4 . Prototype ID Bank 1 | . 1 . Emergency Access Points 1 | . 1 . Alert Level 1 | . 1 . Locate Traps 1 | . 1 . Zone Layout 2 | . 2 . Fabricator Hacks . | . . . Repair Station Hacks . | . . . Recycling Unit Hacks 2 | . 2 . Retrieve Components 2 | . 2 . Scanalyzer . | . . . Garrison Access Hacks . | . . . Unauthorized Hacks 2 | . 2 . Terminals . | . . . Fabricators . | . . . Repair Stations . | . . . Recycling Units 2 | . 2 . Tunnel 2 | . 2 . Scanalyzers . | . . . Garrison Access . | . . . Data Cores Recovered . | . . . Used . | . . . Hacking Detections 8 | . 8 . Full Trace Events 7 | . 7 . Feedback Events . | . . . Feedback Blocked . | . . . Robot Schematics Acquired . | . . . Robots Built . | . . . Authchips . | . . . Time . | . . . Total Robot Build Rating . | . . . Part Schematics Acquired 1 | . 1 . Parts Built . | . . . Authchips . | . . . Time . | . . . Total Part Build Rating . | . . . Parts Repaired . | . . . Time . | . . . Parts Recycled . | . . . Recycled Matter . | . . . Retrieved Matter . | . . . Retrieved Components 3 | . 3 . Parts Scanalyzed . | . . . Part Schematics Acquired . | . . . Parts Damaged . | . . . Bothacking | -11 -10 -10 ------------ Run | Yrd Mat Min Used RIF Installer . | . . . Robots Hacked . | . . . Non-combat . | . . . Combat . | . . . Robot Hacks Applied . | . . . Relay Couplers Released . | . . . Fabnet Peak Effective % . | . . . Robots Rewired . | . . . Allies Hacked . | . . . Hacks Repelled . | . . . Allies | -11 -10 -10 -------- Run | Yrd Mat Min Total Allies 1 | . . 1 Largest Group 1 | . . 1 Highest-Rated Group 31 | . . 31 Highest-Rated Ally 31 | . . 31 Total Orders . | . . . Ally Attacks . | . . . Total Damage . | . . . Kills . | . . . Allies Corrupted . | . . . Allies Melted . | . . . Intel | -11 -10 -10 ------- Run | Yrd Mat Min Robot Analysis Total 4 | . 4 . Derelict Logs Recovered 1 | . . 1 Drone Launches . | . . . Drone Recoveries . | . . . Exploration | -11 -10 -10 ------------- Run | Yrd Mat Min Turns Passed 3178 | 147 2263 768 Spaces Moved 1102 | 105 775 222 Core 10 | 10 . . Treads 774 | . 552 222 Legs . | . . . Wheels 318 | 95 223 . Hover . | . . . Flight . | . . . Fastest Speed 50 | 50 100 320 Average Speed 254 | 95 256 320 Slowest Speed 320 | 100 320 320 Overloaded Moves . | . . . Propulsion Burnouts . | . . . Robots Hopped . | . . . Cave-ins Triggered . | . . . Exploration Rate (%) 51 | 4 96 53 Regions Visited 2 Branch Regions 1 Pre-discovered Areas 4 | . 2 2 Known Exits Taken . | . . . Unknown Exits Taken 2 | 1 1 . Scrap Searched . | . . . Spaces Dug . | . . . Terrain Destroyed 9 | . . 9 Melee . | . . . Projectile . | . . . AOE 9 | . . 9 Terrain Rammed . | . . . Walls Destroyed . | . . . Machines Disabled . | . . . Actions | -11 -10 -10 --------- Run | Yrd Mat Min Total 1310 | 135 923 252 Wait 40 | . 35 5 Move 1100 | 104 774 222 Hop . | . . . Pick Up 46 | 14 29 3 Fast Attach . | . . . Attach 9 | 7 . 2 Detach . | . . . Swap 10 | 1 6 3 Drop 14 | . 13 1 Fire 91 | 9 66 16 Melee . | . . . Ram . | . . . Kick . | . . . Crush . | . . . Escape Stasis . | . . . Rewire . | . . . Trap . | . . . Miscellaneous . | . . . Route ------- -11/Scrapyard -10/Materials (discovered 5 exits: [*Mat x3] / [*Min x2]) -10/Mines History --------- Turn | Location | Event 9 | -11/Scrapyard | Discovered new exit (range 15) 148 | -11/Scrapyard | Entered Materials 310 | -10/Materials | Build established: Mutant 378 | -10/Materials | Discovered new exit (range 7) 408 | -10/Materials | Discovered new exit (range 13) 712 | -10/Materials | Core integrity fell below 50% 1693 | -10/Materials | Discovered new exit (range 13) 1854 | -10/Materials | Discovered new exit (range 9) 2258 | -10/Materials | Discovered new exit (range 16) 2411 | -10/Materials | Entered Mines 2473 | -10/Mines | Core integrity fell below 20% 2545 | -10/Mines | Learned location of Storage (-7) 2940 | -10/Mines | Received a Rocket Launcher from a helpful Derelict 3143 | -10/Mines | Met a Derelict testing a Signal Generator 3149 | -10/Mines | Learned location of Mines (-9) 3179 | -10/Mines | Destroyed by S-10 Pest with Light Assault Rifle Last Messages --------------- divert those annoying Unaware when we need to." 03149_ Acquired derelict log, extracted data. World map updated: -9/Mines. 03152_ Signal Generator broadcasts a burst of procedurally generated transmissions. 03152_ ALERT: Intercepting significant anomalous signal. Dispatching assault force. 03153_ 46-RH9(g): "Okay, I guess that means it works. Now let's get out of here!" 03165_ Signal Generator broadcasts a burst of procedurally generated transmissions. 03165_ ALERT: Intercepting significant anomalous signal. Redirecting assault force. 03170_ Signal Generator broadcasts a burst of procedurally generated transmissions. 03170_ ALERT: Intercepting significant anomalous signal. Redirecting assault force. 03170_ Signal Generator's internal power supply exhausted. Map ----- +----------------------------------------------------+ | ?????####?????## ## #?????????????????# #? | | ???????????????## #?????????????????# #? | | ????????????????## ## #???????????????### ## | | ?????????????????# ### #??????????????## # | | ?????????????????# #?# #??????????????# # | | ?????????????????# ### #??????????????# ## | | ????????????????## #??????????????## ## | | ???????????????## ###?????????????## # | | ???????????????# #??????????????# # | | ???????????????# #??????????????# # | | ???????????????## #??????????????# | | ????????????????#### ##?????????????## | | ???????????????????## ##??????????????# | | ????????????????????# #???????????????# | | ???????????????????## #????# ????????## | | ??????????????????## #???# ##??????#### | | ??????????????????# #??? ##????????## | | ??????????????????# ##??? #?????????# | | ??????????????????# ##???# #?????????# | | ????????????#????## #??## #?????????? | | ?????? ## #### #?## #??????????? | | ?????? s ##?# #??????????? | | ?????? s #??# #??????????? | | ??????? ####### #??# #??????????? | | ??????????????## #### #???????????? | | ???????????????### @## #???????????? | | ?????????????????## g #????????????? | | ??????????????????## #????????????? | | ???????????????????## ##???????????? | | ????????????????????## #???????????? | | ?????????????????????### #???????????? | | ???????????????????????## #???????????? | | ?????????????????######## ### #??????????? | | ?????????????????# ##??# #?????????? | | ?????????????????# ###### #????# ##?????????? | | ????????????????????????# #?????###??????????? | | ????????????????????????# ?????????????????? | | ????????????????????????# ????????????????? | | ????????????????????????## ???????????????? | | ?????????????????????????## ?????????????? | | ???????????????????????????# ##????????????? | | ????????????????????????????#####?????????????? | | ??????????????????????????????????????????????? | | | | | | | | | | | | | | | +----------------------------------------------------+ Best States ------------- Heat Dissipation 25 Energy Generation 10 Energy Capacity 250 Matter Stores 300 Matter Capacity 300 Sight Range 16 Terrain Scan Density 10 Core Shielding 20 Evasion (%) 40 Recoil Reduction 2 Authchip Count 2 Item Schematics ----------------- Cargo Storage Unit | -10/Materials | Hacked Robot Schematics ------------------ None Fabricated ------------ Nothing Alien Tech Used ----------------- None Achievements -------------- None Challenges ------------ None Game ------ Seed MatterAntimatterPerforator Manual? 0 Play Time 00:17:08 Cumulative 159.5 hours Start 2024.06.20 @ 12:16:54 End 2024.06.20 @ 12:45:52 Sessions 1 Manual Loads 0 Difficulty Rogue Special Mode None Game No. 137 Rogue 132 Adventurer 5 Explorer 0 Win Type - Total 3 Types 2/0/1/0/0/0/0/0/0 Lore% 64 Gallery% 75 Achievement% 54 Wizard Run 0 Options --------- Layout 2 ASCII 0 Keyboard 0 Movement Mouse Keybinds 0 Fullscreen 2 Font 24/Smallcaps Map View 50x44 Zoom Use 0% Tactical HUD 1 Map Filters NONE Filters NONE Steam 1 RUN: 3616696f-59b2-46e7-a651-8db9f53b5a8c